bitfinex/quotes_SOLUSD_20240827
["timestamp","ask_amount","ask_price","bid_price","bid_amount"]
[1724771747096,42.08800424,154.24,154.18,1.42243076]
[1724771747408,35.60460424,154.24,154.18,1.42243076]
[1724771747618,42.08800424,154.24,154.16,45.12549]
[1724771747910,6.4839,154.23,154.16,1.29704596]
[1724771748594,6.4849,154.21,154.14,21.9073]
[1724771748919,6.4849,154.21,154.15,0.12549]
[1724771749212,35.60460424,154.22,154.15,0.12549]
[1724771749213,42.08890424,154.22,154.15,0.12549]
[1724771749597,42.08970424,154.2,154.14,6.3441]
[1724771749798,35.60460424,154.2,154.15,1.29727021]
[1724771750016,35.60460424,154.2,154.11,21.29726965]
[1724771750190,35.60460424,154.2,154.12,0.12549]
[1724771750514,35.60460424,154.2,154.12,1.42276105]
[1724771750714,35.60460424,154.2,154.12,0.12549]
[1724771750894,35.60460424,154.2,154.12,1.29727034]
[1724771751091,42.08960424,154.2,154.12,1.29727034]
[1724771751499,35.60460424,154.2,154.12,1.29727034]
[1724771751819,42.08890424,154.22,154.12,1.29727034]
[1724771752003,6.4843,154.22,154.12,1.29727034]
[1724771752201,6.4843,154.22,154.13,0.12549]
[1724771752404,6.4834,154.24,154.14,1.29710109]
[1724771752624,6.4834,154.24,154.15,1.54795537]
[1724771752820,6.4834,154.24,154.15,46.54795537]
[1724771753500,6.4834,154.24,154.15,45.25098]
[1724771753807,6.4834,154.24,154.16,1.29697003]
[1724771754008,6.4834,154.24,154.17,0.25098]
[1724771754313,6.4838,154.23,154.15,45.25098]
[1724771754707,6.4838,154.23,154.16,46.29705051]
[1724771754911,6.4838,154.23,154.16,1.29705051]
[1724771755513,6.4834,154.24,154.16,1.29705051]
[1724771757617,6.4834,154.24,154.17,0.25098]
[1724771757925,6.4834,154.24,154.17,1.5479134]
[1724771758420,6.4834,154.24,154.17,0.25098]
[1724771759215,6.4838,154.23,154.17,0.12549]
[1724771759418,6.4838,154.23,154.15,1.29703506]
[1724771759715,6.4838,154.23,154.16,0.25098]
[1724771759917,6.4838,154.23,154.16,1.54801512]
[1724771760433,16.0703,154.26,154.16,23.46951512]
[1724771760605,20.0,154.25,154.17,45.0]
[1724771760800,20.0,154.25,154.18,1.42242529]
[1724771761120,6.4821,154.27,154.19,0.12549]
[1724771761311,6.4821,154.27,154.19,1.42219684]
[1724771761516,6.4821,154.27,154.2,0.12549]
[1724771762238,6.4832,154.25,154.17,45.0]
[1724771762557,6.4832,154.25,154.18,0.25098]
[1724771762726,6.4832,154.25,154.18,0.12549]
[1724771763223,6.4832,154.25,154.18,1.42239291]
[1724771765527,14.23573851,154.26,154.18,1.42239291]
[1724771765827,14.23573851,154.24,154.16,21.9215]
[1724771766008,20.71993851,154.22,154.16,21.9215]
[1724771766211,6.4848,154.21,154.16,21.9215]
[1724771766930,14.23573851,154.22,154.16,21.9215]
[1724771766931,20.72003851,154.22,154.16,21.9215]
[1724771767137,20.72003851,154.22,154.16,21.4215]
[1724771767712,20.72003851,154.22,154.17,1.29716298]
[1724771767911,20.72003851,154.22,154.16,22.71863786]
[1724771768213,6.4843,154.22,154.16,22.71863786]
[1724771768408,6.4843,154.22,154.16,21.4215]
[1724771769536,6.4837,154.24,154.17,1.29709826]
[1724771769725,6.4837,154.24,154.16,21.54699]
[1724771769915,6.4838,154.23,154.17,0.12549]
[1724771770115,6.4838,154.23,154.16,21.4215]
[1724771770534,6.4842,154.22,154.16,21.4215]
[1724771771133,6.4839,154.23,154.17,1.29714691]
[1724771772119,6.4839,154.23,154.16,21.54699]
[1724771772432,6.4839,154.23,154.17,0.12549]
[1724771772638,6.4839,154.23,154.17,1.42251776]
[1724771772843,35.60166774,154.29,154.17,1.42251776]
[1724771773027,32.0176,154.3,154.18,35.72715774]
[1724771773225,32.0176,154.3,154.19,46.42220717]
[1724771773422,6.4822,154.27,154.19,46.42220717]
[1724771773739,6.4822,154.27,154.2,0.12549]
[1724771774046,6.4814,154.29,154.2,37.02375261]
[1724771774228,22.2962,154.3,154.21,45.0]
[1724771774431,22.2962,154.3,154.22,1.54746057]
[1724771775115,6.481,154.3,154.23,21.5186]
[1724771775324,382.2,154.32,154.23,21.5186]
[1724771775325,6.4813,154.29,154.23,21.5186]
[1724771777048,6.4813,154.29,154.24,1.29647274]
[1724771779020,6.4813,154.29,154.23,22.81507391]
[1724771779226,6.4813,154.29,154.24,1.29647365]
[1724771779716,6.4818,154.28,154.23,21.5186]
[1724771779916,6.4821,154.27,154.19,21.2646]
[1724771780120,35.60166774,154.31,154.19,21.2646]
[1724771780121,6.4826,154.26,154.2,45.12549]
[1724771780841,6.4822,154.27,154.2,45.12549]
[1724771781540,6.483,154.25,154.19,21.2646]
[1724771782229,35.60166774,154.25,154.14,21.487]
[1724771782435,39.1004,154.28,154.14,21.487]
[1724771782436,35.60166774,154.23,154.14,21.487]
[1724771782639,6.4846,154.22,154.14,21.487]
[1724771783219,35.60166774,154.21,154.14,6.4238]
[1724771783439,35.60166774,154.21,154.1,26.35071495]
[1724771783624,50.62486774,154.21,154.11,1.29947633]
[1724771783827,6.4855,154.19,154.11,1.29947633]
[1724771784334,42.08726774,154.19,154.11,1.29764278]
[1724771784537,6.4856,154.19,154.11,1.29764278]
[1724771785236,6.4856,154.19,154.11,2.59722298]
[1724771785950,57.10986774,154.21,154.11,2.59722298]
[1724771786324,6.4852,154.2,154.11,2.59722298]
[1724771786637,6.4852,154.2,154.11,6.04794945]
[1724771786843,15.0232,154.21,154.12,35.72715774]
[1724771787044,57.07189854,154.26,154.14,35.60166774]
[1724771787348,22.819,154.26,154.15,46.54803796]
[1724771787556,22.819,154.26,154.15,45.25098]
[1724771787742,6.4831,154.25,154.15,45.25098]
[1724771788048,22.8187,154.26,154.17,6.5621]
[1724771788229,6.4826,154.26,154.18,82.14951841]
[1724771788625,6.4823,154.27,154.18,97.21271841]
[1724771789128,6.4828,154.26,154.18,15.31418]
[1724771789330,6.483,154.25,154.17,6.5621]
[1724771790042,6.4834,154.24,154.17,6.5621]
[1724771791222,6.4834,154.24,154.18,1.2970545]
[1724771793548,42.08456774,154.26,154.18,1.2970545]
[1724771793949,6.483,154.25,154.18,1.2970545]
[1724771795952,6.4834,154.24,154.17,6.5621]
[1724771796931,6.4839,154.23,154.17,6.5621]
[1724771800959,6.4842,154.22,154.17,6.5621]
[1724771801945,6.4842,154.22,154.14,15.0632]
[1724771802855,6.4842,154.22,154.15,1.29721244]
[1724771803060,6.4847,154.21,154.14,16.36041244]
[1724771803936,6.4851,154.2,154.14,16.36041244]
[1724771804431,6.4851,154.2,154.14,15.0632]
[1724771804753,6.4856,154.19,154.14,15.0632]
[1724771804928,6.486,154.18,154.1,15.0632]
[1724771805134,6.486,154.18,154.11,0.12549]
[1724771805353,6.486,154.18,154.1,15.0632]
[1724771806238,6.486,154.18,154.11,1.29757801]
[1724771806439,35.60166774,154.22,154.12,0.12549]
[1724771806766,6.4852,154.2,154.12,1.42286595]
[1724771806944,6.4852,154.2,154.12,0.12549]
[1724771807254,6.4852,154.2,154.11,45.25098]
[1724771807453,6.4852,154.2,154.12,1.29737656]
[1724771808336,6.4852,154.2,154.13,0.12549]
[1724771808536,50.83046774,154.24,154.13,1.4227941]
[1724771808735,6.4838,154.23,154.14,35.72715774]
[1724771808940,6.4838,154.23,154.15,53.04097022]
[1724771809554,6.4832,154.25,154.15,51.74389]
[1724771809758,6.4832,154.25,154.16,15.18869]
[1724771809939,6.4832,154.25,154.17,45.12549]
[1724771810548,6.4838,154.23,154.16,15.18869]
[1724771810860,6.4838,154.23,154.16,15.0632]
[1724771811269,6.4843,154.22,154.16,15.0632]
[1724771812677,6.4848,154.21,154.15,6.6184]
[1724771813456,35.60166774,154.22,154.12,15.0632]
[1724771813763,6.4855,154.19,154.12,15.0632]
[1724771813969,6.4855,154.19,154.13,1.2973967]
[1724771814170,6.4855,154.19,154.12,16.36059459]
[1724771815185,6.4855,154.19,154.12,15.0632]
[1724771815766,6.4866,154.17,154.11,6.3593]
[1724771817363,6.4872,154.15,154.08,15.0632]
[1724771817674,6.4878,154.14,154.08,15.0632]
[1724771820365,6.4878,154.14,154.08,16.36110901]
[1724771820882,6.488,154.13,154.08,15.0632]
[1724771821370,6.489,154.11,154.03,15.9071208]
[1724771821954,6.4897,154.09,154.03,15.9071208]
[1724771822275,35.60166774,154.12,154.03,17.20542047]
[1724771822661,6.4893,154.1,154.03,17.20542047]
[1724771822982,35.60166774,154.1,154.03,15.9071208]
[1724771823166,42.09096774,154.1,154.03,15.9071208]
[1724771823686,6.4904,154.08,154.03,15.9071208]
[1724771824182,6.4897,154.09,154.03,15.9071208]
[1724771824877,35.60166774,154.08,154.03,0.8439208]
[1724771825262,16.34719,154.12,154.03,0.8439208]
[1724771825263,35.60166774,154.06,154.03,0.8439208]
[1724771825667,42.09286774,154.06,154.03,0.8439208]
[1724771825874,6.4913,154.05,154.03,0.8439208]
[1724771826385,35.60166774,154.06,154.03,0.8439208]
[1724771826386,42.09346774,154.04,154.03,0.8439208]
[1724771826779,62.09346774,154.04,154.03,0.8439208]
[1724771827081,107.34444774,154.04,154.03,0.8439208]
[1724771827461,6.4937,154.0,153.95,6.6247]
[1724771827657,6.4937,154.0,153.91,21.092]
[1724771829384,6.4937,154.0,153.92,1.29910082]
[1724771829590,6.4932,154.01,153.93,1.29894203]
[1724771829774,20.0,154.04,153.93,36.90060977]
[1724771829975,26.4926,154.03,153.94,0.12549]
[1724771830171,26.4926,154.03,153.94,1.42431082]
[1724771830389,26.4926,154.03,153.95,0.12549]
[1724771831564,6.4918,154.04,153.95,0.12549]
[1724771831769,6.4918,154.04,153.95,35.72715774]
[1724771831978,6.4918,154.04,153.96,45.12549]
[1724771832178,6.4922,154.03,153.95,0.12549]
[1724771832368,6.4922,154.03,153.95,1.42428647]
[1724771835291,6.4926,154.02,153.95,1.42428647]
[1724771835666,35.60166774,154.05,153.95,1.42428647]
[1724771835873,20.0,154.04,153.95,1.42428647]
[1724771836280,26.4921,154.04,153.95,1.42428647]
[1724771838398,15.4453,154.06,153.95,37.02595421]
[1724771838690,21.9365,154.06,153.96,45.12549]
[1724771838872,21.9365,154.06,153.97,1.42409097]
[1724771839201,21.9365,154.06,153.97,22.75249097]
[1724771839898,6.4915,154.05,153.97,22.75249097]
[1724771843083,6.4923,154.03,153.97,21.3284]
[1724771843496,42.09396774,154.03,153.93,21.1372]
[1724771843694,42.09396774,154.03,153.94,20.0]
[1724771843892,6.4926,154.02,153.94,21.29885391]
[1724771844496,6.4926,154.02,153.94,1.29885391]
[1724771845305,6.4933,154.01,153.93,21.1372]
[1724771845483,35.60166774,154.01,153.93,21.1372]
[1724771845888,6.4938,154.0,153.93,21.1372]
[1724771846195,6.4939,153.99,153.93,21.1372]
[1724771847081,6.4943,153.98,153.89,23.00910272]
[1724771847297,6.4948,153.97,153.9,1.29928854]
[1724771847887,6.4944,153.98,153.9,1.29928854]
[1724771848084,35.60166774,153.99,153.89,21.71]
[1724771848284,6.4939,153.99,153.89,21.71]
[1724771848485,6.4944,153.98,153.89,21.71]
[1724771849013,6.4944,153.98,153.9,1.29928607]
[1724771849195,6.4944,153.98,153.89,21.71]
[1724771849401,6.4944,153.98,153.9,1.29928847]
[1724771851113,35.60166774,153.97,153.89,21.71]
[1724771851394,35.60166774,153.98,153.89,21.71]
[1724771852807,6.4952,153.96,153.89,21.71]
[1724771853298,6.4948,153.97,153.89,21.71]
[1724771853500,6.4964,153.93,153.89,21.71]
[1724771853806,35.60166774,153.96,153.88,0.8439208]
[1724771854009,45.25098,153.95,153.88,0.8439208]
[1724771854191,52.20346774,153.93,153.88,0.8439208]
[1724771854396,6.4979,153.9,153.88,0.8439208]
[1724771856604,35.60166774,153.91,153.88,0.8439208]
[1724771856605,6.4973,153.91,153.88,0.8439208]
[1724771857007,20.0,153.94,153.88,0.8439208]
[1724771857199,20.0,153.96,153.88,0.8439208]
[1724771857619,6.4968,153.93,153.88,0.8439208]
[1724771857816,55.60166774,153.96,153.88,0.8439208]
[1724771858109,6.496,153.95,153.88,0.8439208]
[1724771858301,20.0,153.94,153.88,0.8439208]
[1724771858610,6.4964,153.93,153.88,0.8439208]
[1724771859421,6.4969,153.92,153.88,0.8439208]
[1724771859712,6.4973,153.91,153.88,0.8439208]
[1724771863196,6.4968,153.93,153.88,0.8439208]
[1724771863606,35.60166774,153.94,153.88,0.8439208]
[1724771863819,6.4978,153.9,153.88,0.8439208]
[1724771864020,6.4974,153.91,153.88,0.8439208]
[1724771865196,16.36519,153.95,153.88,0.8439208]
[1724771865197,6.4981,153.89,153.88,0.8439208]
[1724771866804,6.4978,153.9,153.88,0.8439208]
[1724771867502,35.60166774,153.94,153.88,0.8439208]
[1724771867715,15.693,153.95,153.88,0.8439208]
[1724771867716,6.4968,153.93,153.88,0.8439208]
[1724771867920,35.60166774,153.94,153.88,0.8439208]
[1724771868104,35.60166774,153.92,153.88,0.8439208]
[1724771868432,6.4981,153.89,153.88,0.8439208]
[1724771869422,6.4977,153.9,153.88,0.8439208]
[1724771871207,6.4974,153.91,153.88,0.8439208]
[1724771871935,6.4979,153.9,153.88,0.8439208]
[1724771873733,6.4981,153.89,153.88,0.8439208]
[1724771873918,6.4978,153.9,153.88,0.8439208]
[1724771878003,16.82336553,153.95,153.88,0.8439208]
[1724771878209,15.693,153.95,153.88,0.8439208]
[1724771878432,6.4963,153.94,153.88,0.8439208]
[1724771879232,6.4963,153.94,153.88,4.30138878]
[1724771879740,6.4956,153.95,153.88,4.30138878]
[1724771879913,383.33002311,153.97,153.89,1.2994091]
[1724771880115,35.60166774,153.94,153.89,4.75878554]
[1724771880416,42.09876774,153.92,153.88,0.8439208]
[1724771880628,35.60166774,153.92,153.88,0.8439208]
[1724771880808,6.4981,153.89,153.88,0.8439208]
[1724771881509,6.4973,153.91,153.88,0.8439208]
[1724771882321,35.60166774,153.92,153.88,0.8439208]
[1724771882322,6.4981,153.89,153.88,0.8439208]
[1724771884729,35.60166774,153.9,153.88,0.8439208]
[1724771884933,6.4981,153.89,153.88,0.8439208]
[1724771887332,6.4981,153.89,153.88,4.30122186]
[1724771887534,42.09936774,153.9,153.88,0.8439208]
[1724771887736,6.4978,153.9,153.88,0.8439208]
[1724771888031,6.4976,153.91,153.88,0.8439208]
[1724771888614,6.4978,153.9,153.88,4.3016301]
[1724771888815,6.4978,153.9,153.88,0.8439208]
[1724771889417,6.4978,153.9,153.89,3.45770614]
[1724771890110,15.4973,153.93,153.88,0.8439208]
[1724771890311,398.4386,153.96,153.89,3.45765242]
[1724771890312,382.2,153.96,153.89,3.45765242]
[1724771890730,382.2,153.96,153.9,3.45733069]
[1724771890921,382.2,153.96,153.91,3.45733069]
[1724771891121,382.2,153.96,153.89,3.45733069]
[1724771891317,382.2,153.96,153.9,3.45733069]
[1724771891628,382.2,153.96,153.88,0.8439208]
[1724771892035,382.2,153.96,153.89,9.55810825]
[1724771892342,417.80166774,153.96,153.9,3.45723233]
[1724771892647,6.4961,153.94,153.91,3.45723233]
[1724771892821,6.4961,153.94,153.89,6.10087592]
[1724771893135,6.4961,153.94,153.9,3.45723543]
[1724771893337,6.4961,153.94,153.91,3.45723543]
[1724771893540,6.4961,153.94,153.9,6.10087592]
[1724771893725,6.4961,153.94,153.91,3.45723469]
[1724771894040,6.4961,153.94,153.9,6.10087592]
[1724771894211,6.4961,153.94,153.91,3.45723351]
[1724771894411,6.4961,153.94,153.9,6.10087592]
[1724771894611,6.4961,153.94,153.91,3.45723351]
[1724771894926,417.80166774,153.96,153.9,6.10087785]
[1724771894927,388.6952,153.96,153.9,6.10087785]
[1724771895127,6.4956,153.95,153.91,3.45709435]
[1724771895329,6.496,153.94,153.88,6.94479865]
[1724771895529,6.496,153.94,153.88,0.8439208]
[1724771896141,6.4978,153.9,153.88,0.8439208]
[1724771896335,6.4974,153.91,153.88,0.8439208]
[1724771896541,42.09866774,153.92,153.88,0.8439208]
[1724771896749,6.4973,153.91,153.88,0.8439208]
[1724771898044,6.4978,153.9,153.88,0.8439208]
[1724771898815,20.0,153.93,153.88,0.8439208]
[1724771899042,26.4966,153.93,153.88,0.8439208]
[1724771899232,6.4961,153.94,153.88,0.8439208]
[1724771899435,6.4957,153.95,153.88,0.8439208]
[1724771899622,6.4957,153.95,153.88,22.1949208]
[1724771900045,6.4951,153.97,153.88,22.1949208]
[1724771900336,6.496,153.94,153.88,22.1949208]
[1724771900554,6.4957,153.95,153.88,22.1949208]
[1724771901244,35.60166774,153.96,153.88,22.1949208]
[1724771901543,6.4965,153.93,153.88,0.8439208]
[1724771902665,35.60166774,153.96,153.88,0.8439208]
[1724771902841,20.0,153.95,153.88,0.8439208]
[1724771903322,417.80166774,153.98,153.88,0.8439208]
[1724771903522,6.4944,153.98,153.88,0.8439208]
[1724771903721,6.4944,153.98,153.89,0.12549]
[1724771904442,58.24426536,154.0,153.89,1.42483657]
[1724771904443,6.494,153.99,153.89,1.42483657]
[1724771904629,6.494,153.99,153.9,21.1148]
[1724771904940,23.0916,154.0,153.9,56.71646774]
[1724771905322,23.0916,154.0,153.91,0.12549]
[1724771906022,6.494,153.99,153.91,0.12549]
[1724771906242,6.4936,154.0,153.91,0.12549]
[1724771906553,295.50166774,154.02,153.91,0.12549]
[1724771906843,295.50166774,154.02,153.91,70.00696597]
[1724771907042,259.9,154.02,153.92,35.60166774]
[1724771907233,259.9,154.02,153.93,46.5498992]
[1724771907628,382.2,154.03,153.94,35.60166774]
[1724771907849,382.2,154.03,153.95,1.29885898]
[1724771908144,382.2,154.03,153.94,35.60166774]
[1724771908145,382.2,154.03,153.96,1.29885912]
[1724771908848,12.5192,154.07,153.96,21.0898]
[1724771909056,6.4924,154.03,153.96,21.0898]
[1724771909238,6.4918,154.04,153.96,21.0898]
[1724771909568,35.60166774,154.06,153.96,21.0898]
[1724771910139,20.0,154.05,153.96,21.0898]
[1724771911045,35.60166774,154.04,153.96,21.0898]
[1724771911274,35.60166774,154.04,153.88,0.8439208]
[1724771911275,35.60166774,154.02,153.92,21.452]
[1724771911959,45.12549,154.03,153.92,21.452]
[1724771911960,35.60166774,154.0,153.92,21.452]
[1724771912686,42.09546774,154.0,153.92,21.452]
[1724771913542,35.60166774,154.0,153.92,21.452]
[1724771914059,6.4933,154.01,153.92,21.452]
[1724771914354,35.60166774,153.98,153.92,21.452]
[1724771914938,42.09606774,153.98,153.92,21.452]
[1724771915140,42.09606774,153.98,153.88,0.8439208]
[1724771915141,42.09606774,153.98,153.88,22.2790208]
[1724771915357,42.09696774,153.96,153.88,22.2790208]
[1724771915867,42.09786774,153.94,153.88,0.8439208]
[1724771916064,6.4965,153.93,153.88,0.8439208]
[1724771916237,35.60166774,153.9,153.88,0.8439208]
[1724771916435,0.12549,153.92,153.88,0.8439208]
[1724771916436,6.4981,153.89,153.88,0.8439208]
[1724771916634,42.09976774,153.89,153.88,0.8439208]
[1724771917053,62.09976774,153.89,153.88,0.8439208]
[1724771917254,100.85264774,153.89,153.8,6.2201]
[1724771917463,35.60166774,153.85,153.76,6.5036]
[1724771917938,35.60166774,153.83,153.76,6.5036]
[1724771918134,44.74835391,153.83,153.72,0.8439208]
[1724771918372,20.25098,153.82,153.72,0.8439208]
[1724771918669,44.74835391,153.8,153.72,0.8439208]
[1724771918965,71.75228,153.82,153.72,2.14489304]
[1724771919461,26.62679,153.82,153.72,0.8439208]
[1724771919643,20.12549,153.82,153.72,0.8439208]
[1724771919843,0.12549,153.82,153.72,0.8439208]
[1724771920363,0.25098,153.82,153.72,0.8439208]
[1724771920661,45.25098,153.82,153.72,0.8439208]
[1724771920861,71.5009,153.83,153.73,1.30081028]
[1724771920862,20.0,153.83,153.73,1.30081028]
[1724771921066,20.0,153.83,153.72,45.59227471]
[1724771921243,20.0,153.83,153.73,45.0]
[1724771922061,44.74835391,153.87,153.74,0.12549]
[1724771922240,44.74835391,153.87,153.74,20.25098]
[1724771922241,20.0,153.86,153.74,20.25098]
[1724771922441,20.0,153.86,153.75,45.0]
[1724771922643,44.74835391,153.87,153.76,1.42589364]
[1724771922852,44.74835391,153.87,153.76,0.12549]
[1724771923043,51.24645391,153.9,153.76,0.25098]
[1724771923359,51.24645391,153.9,153.76,20.25098]
[1724771923562,51.24645391,153.9,153.77,45.0]
[1724771923862,44.74835391,153.9,153.78,0.12549]
[1724771924051,44.74835391,153.9,153.78,66.29950028]
[1724771924240,44.74835391,153.9,153.78,64.99933391]
[1724771924446,44.74835391,153.9,153.78,20.0]
[1724771924647,44.74835391,153.9,153.79,1.30046263]
[1724771924857,44.74835391,153.9,153.77,1.30029317]
[1724771925046,44.74835391,153.9,153.78,0.12549]
[1724771925250,71.74908,153.89,153.78,21.42571382]
[1724771925646,20.0,153.89,153.78,20.12549]
[1724771925843,20.0,153.9,153.78,20.12549]
[1724771926042,20.0,153.9,153.79,6.2419]
[1724771926261,20.0,153.9,153.8,91.17394038]
[1724771926569,20.0,153.91,153.81,0.12549]
[1724771926871,382.2,153.92,153.82,1.29987815]
[1724771927055,382.2,153.92,153.83,1.29987825]
[1724771927256,51.24475391,153.93,153.83,1.29987825]
[1724771928044,51.24475391,153.93,153.82,1.29987821]
[1724771928546,51.24475391,153.93,153.83,1.2998805]
[1724771928756,20.0,153.92,153.83,1.2998805]
[1724771929167,17.55062808,153.96,153.84,1.29987838]
[1724771929462,22.916,153.96,153.84,1.42536838]
[1724771929663,6.4957,153.95,153.84,20.0]
[1724771929870,6.496,153.94,153.84,20.0]
[1724771930364,44.74835391,153.94,153.81,20.0]
[1724771930670,20.0,153.93,153.82,1.29993862]
[1724771930970,65.12549,153.93,153.83,1.29987512]
[1724771931747,65.0,153.93,153.83,1.29987512]
[1724771931954,20.0,153.93,153.83,1.29987512]
[1724771932271,6.4956,153.95,153.84,0.25098]
[1724771932471,20.0,153.94,153.84,45.25098]
[1724771932852,26.4962,153.94,153.83,20.0]
[1724771933064,20.0,153.94,153.84,1.4253607]
[1724771934644,6.4956,153.95,153.84,1.4253607]
[1724771934841,6.4956,153.95,153.84,61.4626607]
[1724771935747,6.4956,153.95,153.84,60.16279]
[1724771935948,16.54629,153.96,153.84,15.16279]
[1724771936166,6.4965,153.93,153.84,15.16279]
[1724771936464,65.12549,153.95,153.85,1.29972423]
[1724771936779,20.0,153.95,153.87,6.4086]
[1724771936964,20.0,153.97,153.87,6.4086]
[1724771937269,26.4948,153.97,153.87,6.4086]
[1724771937471,20.0,153.97,153.87,6.4086]
[1724771938259,0.12549,153.96,153.87,6.4086]
[1724771938571,0.25098,153.96,153.87,6.4086]
[1724771939253,6.4957,153.95,153.87,6.4086]
[1724771939650,6.74618,153.96,153.87,6.4086]
[1724771939974,51.24395391,153.95,153.87,6.4086]
[1724771940269,35.74578112,153.94,153.87,6.4086]
[1724771940466,35.74578112,153.92,153.87,6.4086]
[1724771941155,42.24188112,153.94,153.87,6.4086]
[1724771941456,0.12549,153.93,153.87,6.4086]
[1724771943171,20.12549,153.93,153.84,15.0373]
[1724771943486,20.12549,153.93,153.83,6.0797]
[1724771943487,64.93256238,153.93,153.83,6.0797]
[1724771943655,45.0,153.92,153.83,6.0797]
[1724771943976,6.4989,153.88,153.8,15.0632]
[1724771944176,44.68158238,153.89,153.79,6.0654]
[1724771944177,6.4995,153.86,153.79,6.0654]
[1724771944490,51.30607238,153.87,153.79,6.0654]
[1724771944660,20.0,153.86,153.79,6.0654]
[1724771945155,0.12549,153.87,153.79,6.0654]
[1724771945356,6.74948,153.88,153.79,6.0654]
[1724771946448,0.25098,153.88,153.8,1.30035498]
[1724771946665,20.0,153.88,153.79,6.0654]
[1724771947583,26.4982,153.89,153.79,6.0654]
[1724771947782,20.0,153.89,153.79,6.0654]
[1724771948157,20.0,153.89,153.8,1.30015111]
[1724771948456,20.0,153.89,153.79,6.0654]
[1724771948651,26.4982,153.89,153.79,6.0654]
[1724771949572,20.0,153.89,153.8,1.30020889]
[1724771950171,0.12549,153.9,153.8,1.30020889]
[1724771950382,20.0,153.9,153.8,1.30020889]
[1724771950558,20.0,153.9,153.79,6.0654]
[1724771950757,20.0,153.9,153.8,45.25098]
[1724771950974,388.6969,153.92,153.8,89.93256238]
[1724771951153,388.6969,153.92,153.81,1.29997415]
[1724771951572,388.6969,153.92,153.8,89.93256238]
[1724771951780,388.6969,153.92,153.81,1.29993467]
[1724771952181,20.0,153.91,153.82,15.0632]
[1724771952488,26.4973,153.91,153.82,15.0632]
[1724771952662,20.0,153.91,153.82,15.0632]
[1724771952979,20.0,153.91,153.83,1.29985603]
[1724771953778,6.496,153.94,153.84,1.2998532]
[1724771954364,276.2955,153.96,153.85,6.0393]
[1724771954697,276.2955,153.96,153.86,1.29961021]
[1724771954698,259.9,153.96,153.86,1.29961021]
[1724771955175,6.4956,153.95,153.85,6.0393]
[1724771955366,6.4956,153.95,153.86,1.2996541]
[1724771955568,266.3952,153.96,153.86,1.2996541]
[1724771955787,259.9,153.96,153.86,1.2996541]
[1724771955963,266.3952,153.96,153.86,1.2996541]
[1724771956288,44.68158238,153.91,153.82,15.0632]
[1724771956468,44.68158238,153.88,153.82,15.0632]
[1724771957577,51.17888238,153.91,153.82,15.0632]
[1724771957767,20.0,153.9,153.82,15.0632]
[1724771960665,51.17888238,153.91,153.82,15.0632]
[1724771961771,44.68158238,153.91,153.83,1.29989775]
[1724771961974,52.30910568,153.94,153.83,1.29989775]
[1724771962174,281.93266518,153.96,153.85,6.1161]
[1724771962175,265.76556518,153.96,153.85,6.1161]
[1724771962376,266.3955,153.96,153.85,6.1161]
[1724771962771,311.07708238,153.96,153.85,6.1161]
[1724771963901,6.4956,153.95,153.85,6.1161]
[1724771964196,44.68158238,153.93,153.85,6.1161]
[1724771964566,44.68158238,153.93,153.86,1.29970557]
[1724771965174,6.4957,153.95,153.86,1.29970557]
[1724771965175,51.17728238,153.95,153.86,1.29970557]
[1724771965471,388.695,153.97,153.85,6.1161]
[1724771965793,20.0,153.96,153.87,1.29963587]
[1724771965999,382.2,153.97,153.88,15.0632]
[1724771966170,51.17598238,153.98,153.89,1.29936453]
[1724771966372,51.17598238,153.98,153.89,1.29936451]
[1724771966570,51.17598238,153.98,153.88,15.0632]
[1724771967090,51.17598238,153.98,153.89,1.29939098]
[1724771967596,51.17598238,153.98,153.88,15.0632]
[1724771969093,51.17598238,153.98,153.89,1.2993909]
[1724771969395,44.68158238,153.98,153.9,1.29937664]
[1724771969594,6.61949,153.99,153.9,1.29937664]
[1724771969775,20.0,153.98,153.91,6.0666]